Cogmind - Beta 14 @@@ ROGUE MODE // 2024.09.09 @ 00:24:47 Player: Maulwurf Result: Destroyed by as-01189 with Assembled F-torch Performance ------------- Evolutions (0) 0 Regions Visited (2) 400 Robots Destroyed (13) 65 Value Destroyed (250) 250 Prototype IDs (0) 0 Alien Tech Used (0) 0 Bonus (0) 0 TOTAL SCORE: 715 Bonus ------- None Cogmind --------- Core Integrity 0/250 Matter 263/300 Energy 125/125 System Corruption 0% Temperature Cool (60) Movement Walking (120) Location -10/Mines Parts ------- > --- POWER (1) -------- Light Ion Engine > --- PROPULSION (2) --- Aluminum Leg Flexi-carbon Leg > --- UTILITY (2) ------ Small Storage Unit Small Storage Unit > --- WEAPON (2) ------- Light Assault Rifle Light Assault Rifle > --- INVENTORY (8) ---- Light Ion Engine Light Treads Aluminum Leg Aluminum Leg Assault Rifle Peak State ------------ > --- POWER ------------ Light Ion Engine > --- PROPULSION ------- Light Treads Flexi-carbon Leg > --- UTILITY ---------- Small Storage Unit Small Storage Unit > --- WEAPON ----------- Light Assault Rifle Light Assault Rifle > --- INVENTORY -------- Light Ion Engine Aluminum Leg Aluminum Leg Aluminum Leg Assault Rifle [Rating: 11] Favorites ----------- Power Ion Engine Engine Ion Engine Propulsion Light Treads Treads Light Treads Leg Aluminum Leg Utility Small Storage Unit Storage Small Storage Unit Weapon Assault Rifle Energy Cannon Beam Cannon Ballistic Gun Assault Rifle Build | -11 -10 -10 ------- Run | Yrd Mat Min Slots Evolved . | . . . Power . | . . . Propulsion . | . . . Utility . | . . . Weapon . | . . . Parts Attached 15 | 6 4 5 Power 2 | 1 . 1 Engine 2 | 1 . 1 Core . | . . . Reactor . | . . . Propulsion 6 | 2 2 2 Treads 2 | . 2 . Leg 4 | 2 . 2 Wheel . | . . . Hover . | . . . Flight . | . . . Utility 2 | 1 1 . Device . | . . . Storage 2 | 1 1 . Processor . | . . . Hackware . | . . . Protection . | . . . Artifact . | . . . Weapon 5 | 2 1 2 Energy Gun . | . . . Energy Cannon 1 | . 1 . Ballistic Gun 4 | 2 . 2 Ballistic Cannon . | . . . Launcher . | . . . Special Weapon . | . . . Impact Weapon . | . . . Slashing Weapon . | . . . Piercing Weapon . | . . . Special Melee Weapon . | . . . Unidentified Prototypes . | . . . Parts Lost 6 | . 3 3 Power 1 | . 1 . Propulsion 2 | . 1 1 Utility . | . . . Weapon 3 | . 1 2 Highest Loss Streak 2 | . 2 2 To Critical Strikes 1 | . 1 . Average Slot Usage (%) 95 | . 92 98 Engine 11 | . 10 14 Treads 17 | . 11 26 Leg 9 | . 16 . Storage 27 | . 26 28 Energy Cannon 5 | . 5 5 Ballistic Gun 21 | . 22 21 Peak Build Rating 11 | 6 7 11 Average Rating 6 | 3 6 7 On Entrance 4 | . 6 6 Naked Turns . | . . . Heaviest Build 20 | 14 20 18 Greatest Support 40 | 20 40 40 Greatest Overweight (x) 1 | 1 . . Average Overweight (x) . | . . . Largest Inventory Capacity 8 | 8 8 8 Average Capacity 7 | 6 8 8 Most Carried 8 | 5 8 8 Average Carried 5 | 3 5 6 Final Capacity 8 | 8 8 8 Final Carried 8 | 4 8 5 Class Distribution -------------------- 100% | Mutant Dominant Class ---------------- Mutant | -10/Materials Mutant | -10/Mines Resources | -11 -10 -10 ----------- Run | Yrd Mat Min Matter Collected 507 | 214 224 69 Remotely . | . . . Salvage Created 488 | . 402 86 Parts 15 | . 15 . Haulers Intercepted . | . . . Recyclers Shooed . | . . . Parts Field Recycled . | . . . Retrieved Matter . | . . . Parts Self-Destructed . | . . . Prevented . | . . . Kills | -11 -10 -10 ------- Run | Yrd Mat Min Combat Hostiles Destroyed 17 | . 11 6 Guns 13 | . 10 3 Cannons 4 | . 1 3 Classes Destroyed 5 | . 4 1 Worker 1 | . 1 . Recycler 1 | . 1 . Swarmer 6 | . 6 . Grunt 5 | . 5 . Assembled 6 | . . 6 Best Kill Streak 9 | . 9 2 Combat Bots Only 9 | . 9 2 Max Kills in Single Turn 1 | . 1 1 Gunslinging . | . . . Exploded . | . . . Melee . | . . . Uniques/NPCs Destroyed . | . . . Combat | -11 -10 -10 -------- Run | Yrd Mat Min Hostile Shots Fired 129 | . 95 34 Missed 38 | . 29 9 Damage Taken 1126 | . 624 502 Core 253 | . 154 99 Absorbed by Shields . | . . . Core Remaining (%) 100 | 100 . . Volleys Fired 62 | . 32 30 Largest 2 | . 2 2 Hottest 80 | . 80 80 Shots Fired 116 | . 58 58 Gun 97 | . 51 46 Cannon 19 | . 7 12 Launcher . | . . . Special . | . . . Kinetic 97 | . 51 46 Thermal 19 | . 7 12 Explosive . | . . . Electromagnetic . | . . . Robot Hit Streak 8 | . 8 5 Robot Miss Streak 5 | . 5 3 Penetration Max . | . . . Secondary Targets 2 | . 2 . Max Gunslinging Chain 1 | . 1 . Shots Hit Robots 66 | . 37 29 Core Hits 34 | . 18 16 Critical Kills . | . . . Critical Parts Destroyed 1 | . . 1 Critical Strikes 1 | . . 1 Destroy 1 | . . 1 Melee Attacks . | . . . Impact . | . . . Slashing . | . . . Piercing . | . . . Sneak Attacks . | . . . Combat Hostiles . | . . . Follow-up Attacks . | . . . Damage Inflicted 902 | . 568 334 Guns 634 | . 443 191 Cannons 268 | . 125 143 Explosions . | . . . Melee . | . . . Ramming . | . . . Kinetic 634 | . 443 191 Thermal 268 | . 125 143 Explosive . | . . . Electromagnetic . | . . . Impact . | . . . Slashing . | . . . Piercing . | . . . Highest Corruption . | . . . Average Corruption . | . . . Corruption Purged . | . . . Corruption Blocked . | . . . Overload Shots . | . . . Overflow Damage 14 | . . 14 Projectiles 14 | . . 14 Explosions . | . . . Melee . | . . . Knockbacks . | . . . Impact . | . . . Kinetic . | . . . Secondary . | . . . Self-Inflicted Damage . | . . . Shots . | . . . Rammed . | . . . Targets Rammed . | . . . Kicked . | . . . Crushed . | . . . Highest Temperature 144 | . 102 144 Average Temperature 51 | . 38 59 Received Heat Transfer 305 | . 225 80 Siege Activations . | . . . Robots Corrupted . | . . . Combat Hostiles . | . . . Parts Fried . | . . . Impact Corruptions . | . . . Robots Melted . | . . . Combat Hostiles . | . . . Parts Melted . | . . . Heat Transferred 555 | . 259 296 Parts Sabotaged . | . . . Parts Stolen . | . . . Parts Stripped . | . . . Power Chain Reactions . | . . . Alert | -11 -10 -10 ------- Run | Yrd Mat Min Peak Influence 279 | . 279 118 Initial 108 | . . 108 Average 102 | . 120 106 Maximum Alert Level 1 | . 1 . Low Security (%) 81 | 100 62 100 Level 1 18 | . 37 . Level 2 . | . . . Level 3 . | . . . Level 4 . | . . . Level 5 . | . . . High Security . | . . . Max Security . | . . . Squads Dispatched 2 | . 2 . Investigation 1 | . 1 . Extermination . | . . . Reinforcement 1 | . 1 . Assault . | . . . Garrison . | . . . Intercept . | . . . Searches Triggered . | . . . Construction Impeded . | . . . Haulers Reinforced . | . . . Active Scanning Responses . | . . . Cargo Convoy Interrupts . | . . . Stealth | -11 -10 -10 --------- Run | Yrd Mat Min Distress Signals 1 | . . 1 Communications Jammed . | . . . Distress Signals . | . . . Times Spotted 42 | . 20 22 Peak Tracking Total 11 | . 8 11 Tactical Retreats 6 | . . 6 Traps | -11 -10 -10 ------- Run | Yrd Mat Min Traps Triggered 1 | . 1 . Indirectly . | . . . Trap Hack Attempts . | . . . Triggered . | . . . Disarmed . | . . . Reprogrammed . | . . . Reused . | . . . Traps Extracted . | . . . Installed . | . . . Triggered . | . . . Machines | -11 -10 -10 ---------- Run | Yrd Mat Min Machines Disabled . | . . . Max in Single Turn . | . . . Machines Repaired . | . . . Machines Dismantled . | . . . Machines Sabotaged . | . . . Overloaded Fab Kills . | . . . Hacking | -11 -10 -10 --------- Run | Yrd Mat Min Machines Accessed 2 | . 2 . Terminals 2 | . 2 . Fabricators . | . . . Repair Stations . | . . . Recycling Units . | . . . Scanalyzers . | . . . Garrison Access . | . . . Total Hacks 7 | . 7 . Successful 2 | . 2 . Failed 5 | . 5 . Catastrophic . | . . . Database Lockouts . | . . . Manual . | . . . Terminals 7 | . 7 . Fabricators . | . . . Repair Stations . | . . . Recycling Units . | . . . Scanalyzers . | . . . Garrison Access . | . . . Terminal Hacks 2 | . 2 . Emergency Access Points 1 | . 1 . Zone Layout 1 | . 1 . Fabricator Hacks . | . . . Repair Station Hacks . | . . . Recycling Unit Hacks . | . . . Scanalyzer . | . . . Garrison Access Hacks . | . . . Unauthorized Hacks . | . . . Terminals . | . . . Fabricators . | . . . Repair Stations . | . . . Recycling Units . | . . . Scanalyzers . | . . . Garrison Access . | . . . Data Cores Recovered . | . . . Used . | . . . Hacking Detections 2 | . 2 . Full Trace Events 1 | . 1 . Feedback Events . | . . . Feedback Blocked . | . . . Robot Schematics Acquired . | . . . Robots Built . | . . . Authchips . | . . . Time . | . . . Total Robot Build Rating . | . . . Part Schematics Acquired . | . . . Parts Built . | . . . Authchips . | . . . Time . | . . . Total Part Build Rating . | . . . Parts Repaired . | . . . Time . | . . . Parts Recycled . | . . . Recycled Matter . | . . . Retrieved Matter . | . . . Retrieved Components . | . . . Parts Scanalyzed . | . . . Part Schematics Acquired . | . . . Parts Damaged . | . . . Bothacking | -11 -10 -10 ------------ Run | Yrd Mat Min Used RIF Installer . | . . . Robots Hacked . | . . . Non-combat . | . . . Combat . | . . . Robot Hacks Applied . | . . . Relay Couplers Released . | . . . Fabnet Peak Effective % . | . . . Robots Rewired . | . . . Allies Hacked . | . . . Hacks Repelled . | . . . Allies | -11 -10 -10 -------- Run | Yrd Mat Min Total Allies . | . . . Largest Group . | . . . Highest-Rated Group . | . . . Highest-Rated Ally . | . . . Total Orders . | . . . Ally Attacks . | . . . Total Damage . | . . . Kills . | . . . Allies Corrupted . | . . . Allies Melted . | . . . Intel | -11 -10 -10 ------- Run | Yrd Mat Min Robot Analysis Total . | . . . Derelict Logs Recovered . | . . . Drone Launches . | . . . Drone Recoveries . | . . . Exploration | -11 -10 -10 ------------- Run | Yrd Mat Min Turns Passed 743 | 76 378 289 Spaces Moved 376 | 56 205 115 Core 23 | 23 . . Treads 185 | . 74 111 Legs 168 | 33 131 4 Wheels . | . . . Hover . | . . . Flight . | . . . Fastest Speed 50 | 50 120 120 Average Speed 135 | 93 134 158 Slowest Speed 160 | 120 160 160 Overloaded Moves . | . . . Propulsion Burnouts . | . . . Robots Hopped . | . . . Cave-ins Triggered . | . . . Exploration Rate (%) 20 | 4 33 23 Regions Visited 2 Branch Regions 1 Pre-discovered Areas . | . . . Known Exits Taken . | . . . Unknown Exits Taken 2 | 1 1 . Scrap Searched . | . . . Spaces Dug . | . . . Terrain Destroyed . | . . . Melee . | . . . Projectile . | . . . AOE . | . . . Terrain Rammed . | . . . Walls Destroyed . | . . . Machines Disabled . | . . . Actions | -11 -10 -10 --------- Run | Yrd Mat Min Total 501 | 79 250 172 Wait 30 | 8 2 20 Move 374 | 55 204 115 Hop . | . . . Pick Up 18 | 10 7 1 Fast Attach . | . . . Attach 15 | 6 4 5 Detach 2 | . 1 1 Swap . | . . . Drop . | . . . Fire 62 | . 32 30 Melee . | . . . Ram . | . . . Kick . | . . . Crush . | . . . Escape Stasis . | . . . Rewire . | . . . Trap . | . . . Miscellaneous . | . . . Route ------- -11/Scrapyard -10/Materials (discovered 2 exits: [*Mat] / [*Min]) -10/Mines History --------- Turn | Location | Event 38 | -11/Scrapyard | Discovered new exit (range 15) 77 | -11/Scrapyard | Entered Materials 235 | -10/Materials | Discovered new exit (range 10) 235 | -10/Materials | Discovered new exit (range 14) 268 | -10/Materials | Core integrity fell below 50% 303 | -10/Materials | Build established: Mutant 327 | -10/Materials | Destroyed 9 combat bots 455 | -10/Materials | Entered Mines 456 | -10/Mines | Assembled infested the area 461 | -10/Mines | Assisted by a Guerilla fighting off Assembled 562 | -10/Mines | Core integrity fell below 20% 744 | -10/Mines | Destroyed by as-01189 with Assembled F-torch Last Messages --------------- 00544_ Assault Rifle destroyed. 00544_ as-03045 destroyed. 00546_ Acquired 1 matter. 00563_ Beam Cannon destroyed. 00566_ as-35114 destroyed. 00570_ Acquired 17 matter. 00704_ R-06 Scavenger collects Lgt. Ion Engine. 00706_ R-06 Scavenger collects Terrain Scan Processor. 00707_ as-93054 sneak attacks. 00707_ R-06 Scavenger destroyed. 00709_ R-06 Scavenger collects Lgt. Ion Engine. 00710_ as-66063 destroyed. 00711_ as-93054 sneak attacks. 00711_ R-06 Scavenger destroyed. 00727_ as-93054 suffers critical hit (Destroy). 00727_ Destroyed Asb. Hover Unit. 00728_ Lgt. Treads destroyed. 00730_ as-93054 destroyed. 00735_ Acquired 17 matter. 00741_ Critical hit (Burn: +80). Map ----- +----------------------------------------------------+ | | | | | | | ?????????????????????????????????????????????????? | | ??????????????????????????????????##?????????????? | | ?????????????????????????????#####T##????????????? | | ?????????????????????????????# #####????????? | | ?????????????????????????????# #????????? | | ?????????????????????????????# #????????? | | ?????????????????????????????# ### #????????? | | ?????????????????????????????# #????????????? | | ?????????????????????????????### ####????????????? | | ?????????????????????????????### #???????????????? | | ?????????????????????????????# #???????????????# | | ?????????????????????????????#%###????#??????????# | | ?????????????????????????????#%#????? #??????????# | | ????????????????????????????##%#????? #?????????## | | ????????????????????????????##%#???? #?????????# | | ????????????????????????????##%##??? #?????????# | | ?????????????????????????????#%##??# ###???????# | | ?????????????????????????????#%##?? ####????# | | ?????????????????????????????#%##? ##???## | | ?????????????????????????????#%#?? " #????# | | ???????????????????????#######%### #???## | | ???????????????????????#!% % ###### | | ???????????????????????#!@ ### | | ?????????????????#=%%%!%=!###### ########### | | ?????????????????#*#####| #????# #???????## | | ???????????????????????#= #????# #???????# | | ???????????????????????#a #????# #???????# # | | ???????????????????????# #????# ######### ## | | ???????????????????????# #????# ## ##? | | ???????????????????????# #????######## ## ##? | | ??????????????????????? #???????????# ## ## | | ??????????????????????? ????????????# ## | | ??????????????????????? ##????????????# ## | | ??????????????????????? ??????????????# | | ??????????????????????? ??????????????##### | | ??????????????????????# ??????????????????### | | ?????????????????????? ?????????????????????## | | ?????????????????????????????????????????????# | | ?????????????????????????????????????????????# | | ?????????????????????????????????????????????## # | | ??????????????????????????????????????????????#### | | ?????????????????????????????????????????????????? | | ?????????????????????????????????????????????????? | | ?????????????????????????????????????????????????? | | ?????????????????????????????????????????????????? | | ?????????????????????????????????????????????????? | | ?????????????????????????????????????????????????? | +----------------------------------------------------+ Best States ------------- Heat Dissipation 25 Energy Generation 10 Energy Capacity 250 Matter Stores 300 Matter Capacity 300 Sight Range 16 Terrain Scan Density 10 Evasion (%) 55 Recoil Reduction 2 Item Schematics ----------------- None Robot Schematics ------------------ None Fabricated ------------ Nothing Alien Tech Used ----------------- None Achievements -------------- None Challenges ------------ None Game ------ Seed GhostDeliveryMultirail Manual? 0 Play Time 00:09:32 Cumulative 4.5 hours Start 2024.09.09 @ 00:14:45 End 2024.09.09 @ 00:24:47 Sessions 1 Manual Loads 0 Difficulty Rogue Special Mode None Game No. 11 Rogue 11 Adventurer 0 Explorer 0 Win Type - Total 0 Types 0/0/0/0/0/0/0/0/0 Lore% 6 Gallery% 6 Achievement% 10 Wizard Run 0 Options --------- Layout 0 ASCII 0 Keyboard 1 Movement Numpad Keybinds 0 Fullscreen 1 Font 18/SmallcapsGlow Map View 76x50 Zoom Use 0% Tactical HUD 1 Map Filters NONE Filters NONE Steam 1 RUN: bfa58892-ac91-4a46-8c80-60b9f2fdcb95